Cogmind - Beta 15 *** ADVENTURER MODE // 2025.09.01 @ 00:17:32 Player: GwagWa Result: Core destroyed Performance ------------- Evolutions (0) 0 Regions Visited (4) 800 Robots Destroyed (24) 120 Value Destroyed (529) 529 Prototype IDs (0) 0 Alien Tech Used (0) 0 Bonus (800) 800 TOTAL SCORE: 2249 Bonus ------- Registered with UFD 300 Met Optimus in HQ 500 Cogmind --------- Core Integrity 0/250 Matter 236/300 Energy 146/150 System Corruption 0% Temperature Critical (566) Movement Core (1000) Ox19 Location -8/Scraptown Parts ------- > --- POWER (1) -------- Light Angular Momentum Engine > --- PROPULSION (2) --- (None) > --- UTILITY (2) ------ High-capacity Storage Unit > --- WEAPON (2) ------- Beamcaster Heavy Battle Rifle > --- INVENTORY (20) --- Light Ion Engine Subdweller Power Source Improved Heat Sink Improved Heat Sink Heavy Armor Plating Scrap Shield Beam Rifle Beam Rifle Beam Rifle Beam Rifle Light Assault Rifle Peak State ------------ > --- POWER ------------ Light Angular Momentum Engine > --- PROPULSION ------- Subdweller Monowheel Subdweller Monowheel > --- UTILITY ---------- High-capacity Storage Unit > --- WEAPON ----------- Beamcaster Heavy Battle Rifle > --- INVENTORY -------- Light Ion Engine Subdweller Power Source Improved Heat Sink Improved Heat Sink Scrap Shield Beam Rifle Beam Rifle Beam Rifle Beam Rifle Light Assault Rifle [Rating: 21] Favorites ----------- Power Ion Engine Engine Ion Engine Propulsion Subdweller Monowheel Wheel Subdweller Monowheel Utility High-capacity Storage Unit Device Sensor Array Storage High-capacity Storage Unit Weapon Beam Rifle Energy Gun Beam Rifle Ballistic Gun Heavy Battle Rifle Build | -11 -10 -10 -10 -8 ------- Run | Yrd Mat Min Sub Scr Slots Evolved . | . . . . . Power . | . . . . . Propulsion . | . . . . . Utility . | . . . . . Weapon . | . . . . . Parts Attached 21 | 6 3 1 7 4 Power 2 | 1 . . 1 . Engine 2 | 1 . . 1 . Core . | . . . . . Reactor . | . . . . . Propulsion 8 | 2 . . 4 2 Treads . | . . . . . Leg . | . . . . . Wheel 8 | 2 . . 4 2 Hover . | . . . . . Flight . | . . . . . Utility 3 | 1 2 . . . Device 1 | . 1 . . . Storage 2 | 1 1 . . . Processor . | . . . . . Hackware . | . . . . . Protection . | . . . . . Artifact . | . . . . . Weapon 8 | 2 1 1 2 2 Energy Gun 5 | 1 1 . 2 1 Energy Cannon . | . . . . . Ballistic Gun 3 | 1 . 1 . 1 Ballistic Cannon . | . . . . . Launcher . | . . . . . Special Weapon . | . . . . . Impact Weapon . | . . . . . Slashing Weapon . | . . . . . Piercing Weapon . | . . . . . Special Melee Weapon . | . . . . . Unidentified Prototypes . | . . . . . Parts Lost 6 | . . 1 3 2 Power . | . . . . . Propulsion 4 | . . . 2 2 Utility 1 | . . 1 . . Weapon 1 | . . . 1 . Highest Loss Streak 2 | . . 1 2 2 To Critical Strikes . | . . . . . Average Backups 9 | 2 5 6 8 13 Power 1 | 1 1 1 1 2 Propulsion . | . . . . 1 Utility 1 | . . . 1 3 Weapon 5 | . 4 5 5 6 Tool/Special . | . . . . . Unused Backups 9 | . . . . 9 Power 2 | . . . . 2 Propulsion . | . . . . . Utility 4 | . . . . 4 Weapon 3 | . . . . 3 Tool/Special . | . . . . . Average Slot Usage (%) 77 | . 95 93 79 60 Engine 13 | . 12 14 14 14 Wheel 26 | . 28 28 24 27 Device 2 | . 11 8 . . Storage 14 | . 14 14 14 14 Energy Gun 14 | . 27 20 15 3 Ballistic Gun 5 | . . 7 10 . Peak Build Rating 21 | 6 9 12 21 21 Average Rating 12 | 3 8 10 13 14 On Entrance 9 | . 6 9 11 19 Naked Turns . | . . . . . Heaviest Build 58 | 14 51 53 57 58 Greatest Support 40 | 32 32 32 40 40 Greatest Overweight (x) 17 | . 1 1 17 2 Average Overweight (x) 1 | . . 1 1 1 Largest Inventory Capacity 20 | 8 20 20 20 20 Average Capacity 19 | 6 16 20 20 20 Most Carried 17 | 5 7 7 12 17 Average Carried 10 | 2 5 6 9 15 Final Capacity 20 | 8 20 20 20 20 Final Carried 13 | 2 6 6 12 13 Class Distribution -------------------- 88% | Mutant 11% | Scavenger-Mutant Dominant Class ---------------- Mutant | -10/Materials Mutant | -10/Mines Mutant | -10/Subcaves Mutant | -8/Scraptown Resources | -11 -10 -10 -10 -8 ----------- Run | Yrd Mat Min Sub Scr Matter Collected 437 | 143 74 105 115 . Remotely . | . . . . . Salvage Created 725 | . 134 159 165 267 Parts 45 | . 15 10 6 14 Haulers Intercepted . | . . . . . Recyclers Shooed . | . . . . . Parts Field Recycled . | . . . . . Retrieved Matter . | . . . . . Parts Self-Destructed 6 | . . . 6 . Prevented . | . . . . . Kills | -11 -10 -10 -10 -8 ------- Run | Yrd Mat Min Sub Scr Combat Hostiles Destroyed 21 | . 6 6 4 5 Guns 21 | . 6 6 4 5 Classes Destroyed 6 | . 2 1 1 2 Recycler 1 | . . 1 . . Watcher 2 | . 2 . . . Swarmer 12 | . 6 6 . . Subdweller 4 | . . . 4 . Federalist 2 | . . . . 2 Scrapper 3 | . . . . 3 Best Kill Streak 7 | . 7 4 2 4 Combat Bots Only 6 | . 6 3 2 4 Max Kills in Single Turn 2 | . 2 2 1 1 Gunslinging 1 | . 1 . . . Exploded . | . . . . . Melee . | . . . . . Uniques/NPCs Destroyed . | . . . . . Combat | -11 -10 -10 -10 -8 -------- Run | Yrd Mat Min Sub Scr Hostile Shots Fired 121 | . 23 23 34 41 Missed 25 | . 6 6 7 6 Hits 96 | . 17 17 27 35 Projectile 96 | . 17 17 27 35 Critical Strikes 3 | . . . 1 2 Damage Taken 1118 | . 142 92 463 421 Core 268 | . 22 34 87 125 Absorbed by Shields . | . . . . . Ignored by Resistances 314 | . 46 34 127 107 Regen/Repaired (Parts) 49 | . 49 . . . Core Remaining (%) 100 | 100 . . . . Volleys Fired 45 | . 11 9 16 9 Largest 2 | . 2 2 2 2 Hottest 131 | . 96 89 131 131 Shots Fired 84 | . 22 18 26 18 Gun 84 | . 22 18 26 18 Cannon . | . . . . . Launcher . | . . . . . Special . | . . . . . Kinetic 32 | . . 9 15 8 Thermal 41 | . 11 9 11 10 Explosive . | . . . . . Electromagnetic 11 | . 11 . . . Robot Hit Streak 18 | . 7 5 14 18 Robot Miss Streak 3 | . 3 3 1 1 Penetration Max . | . . . . . Secondary Targets 4 | . 1 . 1 2 Max Gunslinging Chain 1 | . 1 . 1 1 Shots Hit Robots 62 | . 15 9 21 17 Core Hits 32 | . 8 7 9 8 Critical Kills . | . . . . . Critical Parts Destroyed . | . . . . . Critical Strikes 3 | . . . 2 1 Burn 3 | . . . 2 1 Melee Attacks . | . . . . . Impact . | . . . . . Slashing . | . . . . . Piercing . | . . . . . Sneak Attacks . | . . . . . Combat Hostiles . | . . . . . Follow-up Attacks . | . . . . . Damage Inflicted 1123 | . 226 186 369 342 Guns 1098 | . 201 186 369 342 Cannons . | . . . . . Explosions 25 | . 25 . . . Melee . | . . . . . Ramming . | . . . . . Kinetic 471 | . . 115 220 136 Thermal 566 | . 140 71 149 206 Explosive . | . . . . . Electromagnetic 86 | . 86 . . . Impact . | . . . . . Slashing . | . . . . . Piercing . | . . . . . Highest Corruption . | . . . . . Average Corruption . | . . . . . Corruption Purged . | . . . . . Corruption Blocked . | . . . . . Overload Shots . | . . . . . Overflow Damage . | . . . . . Projectiles . | . . . . . Explosions . | . . . . . Melee . | . . . . . Knockbacks . | . . . . . Impact . | . . . . . Kinetic . | . . . . . Secondary . | . . . . . Self-Inflicted Damage 28 | . 28 . . . Shots 1 | . 1 . . . Rammed . | . . . . . Targets Rammed . | . . . . . Kicked . | . . . . . Crushed . | . . . . . Highest Temperature 566 | . 367 88 21 566 Average Temperature 142 | . 169 35 16 236 Received Heat Transfer 407 | . . . 135 272 Effects 6 | . 2 . . 4 Shutdowns 1 | . 1 . . . Energy Bleed 1 | . 1 . . . Damage (minor) 1 | . . . . 1 Damage (major) 2 | . . . . 2 Damage (core) 1 | . . . . 1 Siege Activations . | . . . . . Martial Activations . | . . . . . Shielding Activations . | . . . . . Robots Disrupted . | . . . . . Combat Hostiles . | . . . . . Robots Corrupted . | . . . . . Combat Hostiles . | . . . . . Parts Fried . | . . . . . Impact Corruptions . | . . . . . Robots Melted . | . . . . . Combat Hostiles . | . . . . . Parts Melted 7 | . 1 . 2 4 Heat Transferred 1433 | . 346 185 518 384 Parts Sabotaged . | . . . . . Parts Stolen . | . . . . . Parts Stripped . | . . . . . Power Chain Reactions 1 | . 1 . . . Alert | -11 -10 -10 -10 -8 ------- Run | Yrd Mat Min Sub Scr Maximum Alert Level . | . . . . . Low Security (%) 100 | 100 100 100 . . Level 1 . | . . . . . Level 2 . | . . . . . Level 3 . | . . . . . Level 4 . | . . . . . Level 5 . | . . . . . High Security . | . . . . . Max Security . | . . . . . Peak Influence 141 | . 141 96 . . Initial 29 | . . 29 . . Average 42 | . 59 29 . . Influence Increases 309 | . 163 146 . . Destroy 0b10 Robot/C 240 | . 120 120 . . Destroy 0b10 Robot/NC 15 | . 10 5 . . Destroy Leader 44 | . 24 20 . . Successful Hack 5 | . 5 . . . Destroy Structure 5 | . 4 1 . . Influence Decreases 309 | . 73 150 86 . Entered New Map 112 | . . 61 51 . Time Decay 187 | . 73 79 35 . Lost Part 10 | . . 10 . . Squads Dispatched . | . . . . . Investigation . | . . . . . Extermination . | . . . . . Reinforcement . | . . . . . Assault . | . . . . . Garrison . | . . . . . Intercept . | . . . . . Searches Triggered . | . . . . . Construction Impeded . | . . . . . Haulers Reinforced . | . . . . . Active Scanning Responses . | . . . . . Cargo Convoy Interrupts . | . . . . . Stealth | -11 -10 -10 -10 -8 --------- Run | Yrd Mat Min Sub Scr Distress Signals . | . . . . . Communications Jammed . | . . . . . Distress Signals . | . . . . . Times Spotted 40 | . 7 6 16 11 Peak Tracking Total 7 | . 7 3 6 6 Tactical Retreats . | . . . . . Traps | -11 -10 -10 -10 -8 ------- Run | Yrd Mat Min Sub Scr Traps Triggered 1 | . 1 . . . Indirectly . | . . . . . Trap Hack Attempts . | . . . . . Triggered . | . . . . . Disarmed . | . . . . . Reprogrammed . | . . . . . Reused . | . . . . . Traps Extracted . | . . . . . Installed . | . . . . . Triggered . | . . . . . Machines | -11 -10 -10 -10 -8 ---------- Run | Yrd Mat Min Sub Scr Machines Disabled . | . . . . . Max in Single Turn . | . . . . . Machines Repaired . | . . . . . Machines Dismantled . | . . . . . Machines Sabotaged . | . . . . . Overloaded Fab Kills . | . . . . . Hacking | -11 -10 -10 -10 -8 --------- Run | Yrd Mat Min Sub Scr Machines Accessed 5 | . 2 . . 3 Terminals 1 | . 1 . . . Fabricators . | . . . . . Repair Stations 1 | . 1 . . . Recycling Units . | . . . . . Scanalyzers . | . . . . . Garrison Access . | . . . . . Total Hacks 22 | . 3 . . 19 Successful 22 | . 3 . . 19 Failed . | . . . . . Catastrophic . | . . . . . Database Lockouts . | . . . . . Manual . | . . . . . Terminals 1 | . 1 . . . Fabricators . | . . . . . Repair Stations 2 | . 2 . . . Recycling Units . | . . . . . Scanalyzers . | . . . . . Garrison Access . | . . . . . Terminal Hacks 20 | . 1 . . 19 Record 19 | . . . . 19 Locate Traps 1 | . 1 . . . Fabricator Hacks . | . . . . . Repair Station Hacks 2 | . 2 . . . Scan Component 1 | . 1 . . . Repair 1 | . 1 . . . Recycling Unit Hacks . | . . . . . Scanalyzer . | . . . . . Garrison Access Hacks . | . . . . . Unauthorized Hacks . | . . . . . Terminals . | . . . . . Fabricators . | . . . . . Repair Stations . | . . . . . Recycling Units . | . . . . . Scanalyzers . | . . . . . Garrison Access . | . . . . . Data Cores Recovered . | . . . . . Used . | . . . . . Hacking Detections 1 | . 1 . . . Full Trace Events . | . . . . . Feedback Events . | . . . . . Feedback Blocked . | . . . . . Robot Schematics Acquired . | . . . . . Robots Built . | . . . . . Authchips . | . . . . . Time . | . . . . . Total Robot Build Rating . | . . . . . Part Schematics Acquired . | . . . . . Parts Built . | . . . . . Authchips . | . . . . . Time . | . . . . . Total Part Build Rating . | . . . . . Parts Repaired 1 | . 1 . . . Time 26 | . 26 . . . Parts Recycled . | . . . . . Recycled Matter . | . . . . . Retrieved Matter . | . . . . . Retrieved Components . | . . . . . Parts Scanalyzed . | . . . . . Part Schematics Acquired . | . . . . . Parts Damaged . | . . . . . Bothacking | -11 -10 -10 -10 -8 ------------ Run | Yrd Mat Min Sub Scr Used RIF Installer . | . . . . . Robots Hacked . | . . . . . Non-combat . | . . . . . Combat . | . . . . . Robot Hacks Applied . | . . . . . Relay Couplers Released . | . . . . . Fabnet Peak Effective % . | . . . . . Robots Rewired . | . . . . . Allies Hacked . | . . . . . Hacks Repelled . | . . . . . Allies | -11 -10 -10 -10 -8 -------- Run | Yrd Mat Min Sub Scr Total Allies . | . . . . . Largest Group . | . . . . . Highest-Rated Group . | . . . . . Highest-Rated Ally . | . . . . . Total Orders . | . . . . . Ally Attacks . | . . . . . Total Damage . | . . . . . Kills . | . . . . . Allies Corrupted . | . . . . . Allies Melted . | . . . . . Intel | -11 -10 -10 -10 -8 ------- Run | Yrd Mat Min Sub Scr Active Infowar (turns) 356 | . 231 125 . . Sensors 356 | . 231 125 . . Robot Analysis Total . | . . . . . Derelict Logs Recovered 1 | . . 1 . . Drone Launches . | . . . . . Drone Recoveries . | . . . . . Exploration | -11 -10 -10 -10 -8 ------------- Run | Yrd Mat Min Sub Scr Turns Passed 1985 | 46 273 211 871 584 Spaces Moved 1417 | 39 184 141 593 460 Core 24 | 14 . . 10 . Treads . | . . . . . Legs . | . . . . . Wheels 1393 | 25 184 141 583 460 Hover . | . . . . . Flight . | . . . . . Fastest Speed 50 | 50 100 115 115 112 Average Speed 121 | 82 108 115 132 119 Slowest Speed 900 | 100 115 115 900 130 Overloaded Moves . | . . . . . Propulsion Burnouts . | . . . . . Robots Hopped . | . . . . . Potential Cave-ins . | . . . . . Cave-ins Triggered . | . . . . . Exploration Rate (%) 36 | 3 48 37 54 42 Regions Visited 4 Branch Regions 3 Pre-discovered Areas 1 | . . 1 . . Known Exits Taken . | . . . . . Unknown Exits Taken 4 | 1 1 1 1 . Scrap Searched 2 | . . 1 . 1 Spaces Dug . | . . . . . Terrain Destroyed 5 | . 3 1 1 . Melee . | . . . . . Projectile 2 | . . 1 1 . AOE 3 | . 3 . . . Terrain Rammed . | . . . . . Walls Destroyed . | . . . . . Machines Disabled . | . . . . . Actions | -11 -10 -10 -10 -8 --------- Run | Yrd Mat Min Sub Scr Total 1598 | 52 236 172 654 484 Wait 69 | . 25 20 24 . Move 1413 | 38 183 140 592 460 Hop . | . . . . . Pick Up 34 | 8 10 1 11 4 Fast Attach . | . . . . . Attach 23 | 6 4 1 7 5 Detach 3 | . . . 1 2 Swap . | . . . . . Drop 11 | . 3 1 3 4 Fire 45 | . 11 9 16 9 Melee . | . . . . . Ram . | . . . . . Kick . | . . . . . Crush . | . . . . . Escape Stasis . | . . . . . Rewire . | . . . . . Trap . | . . . . . Miscellaneous . | . . . . . Route ------- -11/Scrapyard -10/Materials -10/Mines -10/Subcaves (discovered 2 exits: [*Mat] / *Scr) -8/Scraptown History --------- Turn | Location | Event 12 | -11/Scrapyard | Discovered new exit (range 16) 47 | -11/Scrapyard | Entered Materials 240 | -10/Materials | Repaired Ion Engine 292 | -10/Materials | Discovered new exit (range 16) 301 | -10/Materials | Build established: Mutant 320 | -10/Materials | Entered Mines 415 | -10/Mines | A weapon hastily lodged in a ceiling crevice suddenly fell to the ground 519 | -10/Mines | Discovered new exit (range 11) 531 | -10/Mines | Entered Subcaves 532 | -10/Subcaves | Approached by a straggling Scientist 645 | -10/Subcaves | Ambushed by swarm of Subdwellers 829 | -10/Subcaves | Shifting Twisted Machinery released Piercing Trap 833 | -10/Subcaves | Shifting Twisted Machinery released Flamer 833 | -10/Subcaves | Discovered new exit (range 13) 1070 | -10/Subcaves | Core integrity fell below 50% 1296 | -10/Subcaves | Ambushed by Subdwellers from Twisted Machinery 1395 | -10/Subcaves | Scientist uncovered a shortcut to Scraptown 1402 | -10/Subcaves | Entered Scraptown 1519 | -8/Scraptown | Heard Great Nut preacher, LISTEN AND RECITE! 1663 | -8/Scraptown | Visited UFD Registry 1678 | -8/Scraptown | Registered with UFD as "Flakframe" 1823 | -8/Scraptown | Met Optimus 1823 | -8/Scraptown | Accepted into 0bPrime 1896 | -8/Scraptown | Visited DA-N13 Charitable Foundation 1897 | -8/Scraptown | Civil war broke out across Scraptown 1975 | -8/Scraptown | Core integrity fell below 20% 1987 | -8/Scraptown | Core destroyed Last Messages --------------- Arm. Wheel destroyed. Critical hit (Burn: +50). Sub. Monowheel destroyed. Penetrated by Bolt. Lgt. Deuterium Engine melted. NY-102(j) destroyed. Lgt. Deuterium Engine melted. DA-814(j) destroyed. Switching to secondary target: ZJ-1GC(g). Overheating: Hvy. Battle Rifle damaged (-44). Overheating: Hcp. Storage Unit damaged (-297). Penetrated by Bolt. ZJ-1GC(g) suffers critical hit (Burn). Aluminum Leg melted. ZJ-1GC(g) destroyed. Overheating: Lgt. Angular Momentum Engine damaged (-6). B4-18M(h) suffers critical hit (Impale). B4-18M(h) destroyed. Overheating: Core damaged (-37). Map ----- +----------------------------------------------------+ | | | | | | | ?????????????????????????????????????????????????? | | ?????????????????????????????????????????????????? | | ?????????????????????????????????????????????????? | | ?????????????????????????????????????????????????? | | ?????????????????????????????????????????????????? | | ?????????????????????????????????????????????????? | | ?????????????????????????????????????????????????? | | ?????????????????????????????????????????????????? | | ?????????????????????????????????????????????????? | | ?????????????????????????????????????????????????? | | ?????????????????????????????????????????????????? | | ?????????????????????????????????????????????????? | | ?????????????????????????????????????????????????? | | ???????????????????????####??????????????????????? | | ??????????????????????## ##?????????????????????? | | ???????????????????#### ![#####?????????????????? | | ???????????????????? [==[![[ ??????????????????? | | ????????????????????? =!!!%%=????????????????????? | | ??????????????????????#%[g[#?????????????????????? | | ???????????????????????#=x#??????????????????????? | | ???????????????????????#=%#??????????????????????? | | ???????????????????????#=[#??????????????????????? | | ???????????????????????#!@#??????????????????????? | | ???????????????????????#!=#??????????????????????? | | ???????????????""""????# #??????????????????????? | | ????????????????""""???# #??????????????????????? | | ???####??#?????" "???# #?? ???????????????????? | | ???# # #????? ""??# #?? ?????????????????? | | ???# # #???"? "!??# #?? ??????????????????? | | ???# # ?????"" """?# #?" "?????????????????? | | ???? ??????? ""??# #? ??????????????????? | | ????? ????????? ???# #? ???????????????????? | | ?????# #?????????# #???# #? #???????????????????? | | ###### ########### ##### ## ##??????????????????? | | """""" """"""""""" """"" "" "#??????????????????? | | "#?????"""??????????? | | "#???!!!!???????????? | | "#?? ?????????? | | ="## ????????? | | [%* ??????????? | | """""""""""""""""""""""" ="## ???????????? | | """""""""""""""""""""""" "#?? !??????????????? | | #### ################"" "#???"??????????????? | | ##????????#"" "#???#####??????????? | | X"#????????#"" "#?? #??????????? | | "" "" ##????????#"" "#?? $ #??????????? | | "" "" X"#??????###"" "#? #??????????? | +----------------------------------------------------+ Best States ------------- Heat Dissipation 25 Energy Generation 18 Energy Capacity 250 Matter Stores 300 Matter Capacity 300 Sight Range 16 Robot Scan Range 14 Terrain Scan Density 10 Resistance: KI 20 Resistance: TH 20 Resistance: EX 20 Resistance: EM 20 Resistance: I 20 Resistance: S 20 Resistance: P 20 Evasion (%) 50 Offensive Hacking 10 Item Schematics ----------------- None Robot Schematics ------------------ None Fabricated ------------ Nothing Repaired ---------- Ion Engine | 18% | -10/Materials Alien Tech Used ----------------- None Achievements -------------- None Challenges ------------ None Game ------ Seed SuperquantumTripodStripper Manual? 0 Play Time 00:21:21 Cumulative 3.9 hours Start 2025.08.29 @ 19:26:12 End 2025.09.01 @ 00:17:32 Sessions 2 Manual Loads 0 Difficulty Adventurer Special Mode None Game No. 11 Rogue 0 Adventurer 11 Explorer 0 Win Type - Total 0 Types 0/0/0/0/0/0/0/0/0/0 Lore% 7 Gallery% 10 Achievement% 9 Wizard Run 0 Options --------- Layout 1 ASCII 0 Keyboard 0 Movement Mouse Keybinds 0 Fullscreen 1 Font 24/Smallcaps Map View 50x35 Zoom Use 0% Tactical HUD 0 Map Filters NONE Filters NONE Steam 1 RUN: 2ba2e532-977b-4361-ad8b-cb10bf5f2360